[Event "Mistrovství Čech mládeže 2023 - HD14"]
[Site "Harrachov, Czech Republic"]
[Date "2023.10.25"]
[Round "6.9"]
[White "Seidl, Václav"]
[Black "Bludský, Hynek"]
[Result "1/2-1/2"]
[TimeControl "90m + 30s"]
[WhiteElo "1478"]
[BlackElo "1547"]

1. e4 {[%clk 01:30:57]} {[%emt 00:00:02]} c5 {[%clk 01:30:55]} {[%emt
00:00:05]} 2. Nf3 {[%clk 01:31:23]} {[%emt 00:00:04]} Nc6 {[%clk 01:31:21]}
{[%emt 00:00:03]} 3. Bb5 {[%clk 01:31:46]} {[%emt 00:00:07]} g6 {[%clk
01:31:43]} {[%emt 00:00:08]} 4. Bxc6 {[%clk 01:32:08]} {[%emt 00:00:08]} bxc6
{[%clk 01:32:07]} {[%emt 00:00:06]} 5. d3 {[%clk 01:32:21]} {[%emt 00:00:17]}
Bg7 {[%clk 01:31:03]} {[%emt 00:01:34]} 6. O-O {[%clk 01:32:42]} {[%emt
00:00:09]} e5 {[%clk 01:31:27]} {[%emt 00:00:07]} 7. Be3 {[%clk 01:32:02]}
{[%emt 00:01:09]} d6 {[%clk 01:31:53]} {[%emt 00:00:05]} 8. Nbd2 {[%clk
01:31:04]} {[%emt 00:01:28]} Ne7 {[%clk 01:31:57]} {[%emt 00:00:27]} 9. Nc4
{[%clk 01:29:38]} {[%emt 00:01:55]} O-O {[%clk 01:31:41]} {[%emt 00:00:46]} 10.
h3 {[%clk 01:27:27]} {[%emt 00:02:40]} f5 {[%clk 01:31:30]} {[%emt 00:00:42]}
11. Bd2 {[%clk 01:23:20]} {[%emt 00:04:36]} f4 {[%clk 01:25:59]} {[%emt
00:06:02]} 12. Bc3 {[%emt 00:13:49]} h6 {[%clk 01:23:35]} {[%emt 00:00:02]} 13.
b3 {[%clk 01:07:56]} {[%emt 00:05:28]} g5 {[%clk 01:22:07]} {[%emt 00:01:58]}
14. Ne1 {[%clk 01:05:48]} {[%emt 00:02:37]} Kh7 {[%clk 01:20:02]} {[%emt
00:02:37]} 15. f3 {[%clk 01:02:24]} {[%emt 00:03:52]} Be6 {[%clk 01:15:50]}
{[%emt 00:04:42]} 16. Nd2 {[%clk 00:56:29]} {[%emt 00:06:23]} d5 {[%clk
01:12:28]} {[%emt 00:03:55]} 17. Bb2 {[%clk 00:52:05]} {[%emt 00:04:53]} d4
{[%clk 01:09:07]} {[%emt 00:03:51]} 18. Nc4 {[%clk 00:49:45]} {[%emt 00:02:50]}
Rb8 {[%clk 01:03:28]} {[%emt 00:06:10]} 19. a4 {[%clk 00:47:36]} {[%emt
00:02:39]} Ng6 {[%clk 00:47:21]} {[%emt 00:16:37]} 20. Ba3 {[%clk 00:47:24]}
{[%emt 00:00:43]} Qe7 {[%clk 00:45:07]} {[%emt 00:02:44]} 21. Qd2 {[%clk
00:46:40]} {[%emt 00:01:12]} Rf7 {[%clk 00:44:19]} {[%emt 00:01:20]} 22. Qa5
{[%clk 00:42:47]} {[%emt 00:04:21]} Bf8 {[%clk 00:43:35]} {[%emt 00:01:15]} 23.
Rf2 {[%clk 00:39:18]} {[%emt 00:03:58]} Qc7 {[%clk 00:42:34]} {[%emt 00:01:32]}
24. Qd2 {[%clk 00:38:47]} {[%emt 00:01:00]} Rg7 {[%clk 00:39:52]} {[%emt
00:03:14]} 25. Kf1 {[%clk 00:34:19]} {[%emt 00:04:57]} h5 {[%clk 00:37:57]}
{[%emt 00:02:25]} 26. Ke2 {[%clk 00:34:15]} {[%emt 00:00:34]} g4 {[%clk
00:36:07]} {[%emt 00:02:20]} 27. hxg4 {[%clk 00:34:22]} {[%emt 00:00:23]} hxg4
{[%clk 00:36:31]} {[%emt 00:00:06]} 28. Kd1 {[%clk 00:34:07]} {[%emt 00:00:45]}
g3 {[%clk 00:35:43]} {[%emt 00:01:18]} 29. Rf1 {[%clk 00:26:23]} {[%emt
00:08:12]} Kg8 {[%clk 00:34:48]} {[%emt 00:01:26]} 30. Kc1 {[%clk 00:25:22]}
{[%emt 00:01:31]} Rh7 {[%clk 00:34:47]} {[%emt 00:00:32]} 31. Kb2 {[%clk
00:24:21]} {[%emt 00:01:30]} Kf7 {[%clk 00:32:58]} {[%emt 00:02:20]} 32. Rg1
{[%clk 00:22:33]} {[%emt 00:02:17]} Kf6 {[%clk 00:32:58]} {[%emt 00:00:31]} 33.
Qe2 {[%clk 00:21:44]} {[%emt 00:01:18]} Be7 {[%clk 00:31:40]} {[%emt 00:01:49]}
34. Rd1 {[%clk 00:20:21]} {[%emt 00:01:52]} Nf8 {[%clk 00:30:25]} {[%emt
00:01:44]} 35. Qf1 {[%clk 00:19:29]} {[%emt 00:01:22]} Nd7 {[%clk 00:30:28]}
{[%emt 00:00:29]} 36. Rh1 {[%clk 00:19:06]} {[%emt 00:00:53]} Rbh8 {[%clk
00:30:44]} {[%emt 00:00:14]} 37. Rxh7 {[%clk 00:18:34]} {[%emt 00:01:02]} Rxh7
{[%clk 00:31:12]} {[%emt 00:00:02]} 38. Rd2 {[%clk 00:18:21]} {[%emt 00:00:43]}
Rh8 {[%clk 00:31:19]} {[%emt 00:00:23]} 39. Qe2 {[%clk 00:17:53]} {[%emt
00:00:58]} Nb6 {[%clk 00:31:14]} {[%emt 00:00:36]} 40. Ka2 {[%clk 00:17:05]}
{[%emt 00:01:17]} Qb8 {[%clk 00:30:19]} {[%emt 00:01:25]} 41. Qd1 {[%clk
00:16:48]} {[%emt 00:00:47]} Rh1 {[%clk 00:30:29]} {[%emt 00:00:21]} 42. Re2
{[%clk 00:16:59]} {[%emt 00:00:18]} Qh8 {[%clk 00:30:25]} {[%emt 00:00:34]} 43.
Qd2 {[%clk 00:17:14]} {[%emt 00:00:15]} Qb8 {[%clk 00:29:36]} {[%emt 00:01:19]}
44. Qd1 {[%clk 00:16:29]} {[%emt 00:01:14]} Nd7 {[%clk 00:28:49]} {[%emt
00:01:18]} 45. Qd2 {[%clk 00:16:19]} {[%emt 00:00:40]} Bd8 {[%clk 00:28:51]}
{[%emt 00:00:28]} 46. Qd1 {[%clk 00:15:53]} {[%emt 00:00:56]} Bxc4 {[%clk
00:27:47]} {[%emt 00:01:35]} 47. dxc4 {[%clk 00:16:08]} {[%emt 00:00:15]} Ba5
{[%clk 00:28:10]} {[%emt 00:00:07]} 48. Bc1 {[%clk 00:16:18]} {[%emt 00:00:20]}
Rf1 {[%clk 00:24:17]} {[%emt 00:04:23]} 49. Bd2 {[%clk 00:15:03]} {[%emt
00:01:45]} Qb6 {[%clk 00:21:28]} {[%emt 00:03:19]} 50. Qc1 {[%clk 00:14:11]}
{[%emt 00:01:21]} Bxd2 {[%clk 00:21:14]} {[%emt 00:00:44]} 51. Qxd2 {[%clk
00:14:35]} {[%emt 00:00:06]} Qb4 {[%clk 00:20:46]} {[%emt 00:00:59]} 52. Nd3
{[%clk 00:14:49]} {[%emt 00:00:16]} Qxd2 {[%clk 00:20:48]} {[%emt 00:00:28]} 53.
Rxd2 {[%clk 00:15:14]} {[%emt 00:00:05]} Ke6 {[%clk 00:20:15]} {[%emt
00:01:02]} 54. Kb2 {[%clk 00:15:01]} {[%emt 00:00:43]} Kd6 {[%clk 00:20:03]}
{[%emt 00:00:42]} 55. c3 {[%clk 00:14:39]} {[%emt 00:00:52]} a5 {[%clk
00:19:47]} {[%emt 00:00:46]} 56. Kc2 {[%clk 00:14:51]} {[%emt 00:00:18]} Nf8
{[%clk 00:18:33]} {[%emt 00:01:44]} 57. Re2 {[%clk 00:14:53]} {[%emt 00:00:27]}
Ng6 {[%clk 00:18:01]} {[%emt 00:01:02]} 58. Kd2 {[%clk 00:15:02]} {[%emt
00:00:21]} Ra1 {[%clk 00:17:14]} {[%emt 00:01:17]} 59. Kc2 {[%clk 00:14:09]}
{[%emt 00:01:22]} Nf8 {[%clk 00:16:44]} {[%emt 00:01:01]} 60. cxd4 {[%clk
00:11:46]} {[%emt 00:02:54]} cxd4 {[%clk 00:17:08]} {[%emt 00:00:06]} 61. Nc1
{[%clk 00:11:54]} {[%emt 00:00:22]} d3+ {[%clk 00:15:46]} {[%emt 00:01:52]} 62.
Nxd3 {[%clk 00:12:16]} {[%emt 00:00:07]} Ne6 {[%clk 00:14:57]} {[%emt
00:01:19]} 63. Rd2 {[%clk 00:11:38]} {[%emt 00:01:08]} Rg1 {[%clk 00:14:13]}
{[%emt 00:01:14]} 64. Nxf4+ {[%clk 00:08:11]} {[%emt 00:03:57]} Nd4+ {[%clk
00:14:21]} {[%emt 00:00:22]} 65. Kb2 {[%clk 00:08:36]} {[%emt 00:00:05]} c5
{[%clk 00:13:56]} {[%emt 00:00:55]} 66. Nh3 {[%clk 00:08:41]} {[%emt 00:00:23]}
Re1 {[%clk 00:13:31]} {[%emt 00:00:56]} 67. Kc3 {[%clk 00:07:04]} {[%emt
00:02:03]} Re3+ {[%clk 00:13:20]} {[%emt 00:00:44]} 68. Rd3 {[%clk 00:07:16]}
{[%emt 00:00:19]} Re2 {[%clk 00:13:39]} {[%emt 00:00:12]} 69. Rd2 {[%clk
00:07:23]} {[%emt 00:00:23]} Re3+ {[%clk 00:13:59]} {[%emt 00:00:08]} 70. Rd3
{[%clk 00:07:45]} {[%emt 00:00:09]} Re2 {[%clk 00:14:19]} {[%emt 00:00:11]} 71.
Rd2 {[%emt 00:00:07]} 1/2-1/2

[Event "Mistrovství Čech mládeže 2023 - HD14"]
[Site "Harrachov, Czech Republic"]
[Date "2023.10.25"]
[Round "6.10"]
[White "Hrdlička, Jan"]
[Black "Krautschneider, Daniel Jan"]
[Result "1-0"]
[TimeControl "90m + 30s"]
[WhiteElo "1418"]
[BlackElo "1669"]

1. e4 {[%clk 01:30:48]} {[%emt 00:00:12]} c5 {[%clk 01:30:58]} {[%emt
00:00:03]} 2. Nf3 {[%clk 01:31:13]} {[%emt 00:00:04]} Nc6 {[%clk 01:31:24]}
{[%emt 00:00:04]} 3. d4 {[%clk 01:31:37]} {[%emt 00:00:06]} cxd4 {[%clk
01:31:52]} {[%emt 00:00:03]} 4. Nxd4 {[%clk 01:31:51]} {[%emt 00:00:15]} g6
{[%clk 01:32:17]} {[%emt 00:00:05]} 5. Nc3 {[%clk 01:32:00]} {[%emt 00:00:21]}
Bg7 {[%clk 01:32:41]} {[%emt 00:00:06]} 6. Be3 {[%clk 01:32:14]} {[%emt
00:00:15]} Nf6 {[%clk 01:33:09]} {[%emt 00:00:03]} 7. Bc4 {[%clk 01:32:31]}
{[%emt 00:00:12]} O-O {[%clk 01:33:31]} {[%emt 00:00:08]} 8. Bb3 {[%clk
01:32:43]} {[%emt 00:00:18]} a6 {[%clk 01:33:37]} {[%emt 00:00:25]} 9. f3
{[%clk 01:31:58]} {[%emt 00:01:15]} d6 {[%clk 01:33:55]} {[%emt 00:00:12]} 10.
Qd2 {[%clk 01:32:11]} {[%emt 00:00:17]} Bd7 {[%clk 01:34:18]} {[%emt 00:00:07]}
11. O-O-O {[%clk 01:31:51]} {[%emt 00:00:50]} b5 {[%clk 01:34:33]} {[%emt
00:00:16]} 12. Kb1 {[%clk 01:30:16]} {[%emt 00:02:04]} Nxd4 {[%clk 01:33:59]}
{[%emt 00:01:04]} 13. Bxd4 {[%clk 01:30:32]} {[%emt 00:00:13]} a5 {[%clk
01:33:54]} {[%emt 00:00:36]} 14. Nd5 {[%clk 01:09:49]} {[%emt 00:21:12]} e5
{[%clk 01:08:22]} {[%emt 00:26:03]} 15. Nxf6+ {[%clk 01:07:48]} {[%emt
00:02:30]} Bxf6 {[%clk 01:08:00]} {[%emt 00:00:53]} 16. Be3 {[%clk 01:07:11]}
{[%emt 00:01:07]} Be7 {[%clk 01:05:31]} {[%emt 00:02:58]} 17. g4 {[%clk
00:57:18]} {[%emt 00:10:23]} Bc6 {[%clk 00:46:19]} {[%emt 00:19:42]} 18. h4
{[%clk 00:55:07]} {[%emt 00:02:42]} a4 {[%clk 00:45:11]} {[%emt 00:01:38]} 19.
Bd5 {[%clk 00:54:05]} {[%emt 00:01:32]} Bxd5 {[%clk 00:44:55]} {[%emt
00:00:47]} 20. exd5 {[%clk 00:54:21]} {[%emt 00:00:14]} Rb8 {[%clk 00:43:41]}
{[%emt 00:01:43]} 21. h5 {[%clk 00:49:59]} {[%emt 00:04:52]} g5 {[%clk
00:42:35]} {[%emt 00:01:36]} 22. h6 {[%clk 00:48:14]} {[%emt 00:02:15]} b4
{[%clk 00:41:41]} {[%emt 00:01:23]} 23. Rh5 {[%clk 00:44:45]} {[%emt 00:03:59]}
f6 {[%clk 00:41:32]} {[%emt 00:00:40]} 24. Rhh1 {[%clk 00:38:21]} {[%emt
00:06:54]} Qd7 {[%clk 00:40:29]} {[%emt 00:01:34]} 25. Qd3 {[%clk 00:36:49]}
{[%emt 00:02:02]} Rfc8 {[%clk 00:35:55]} {[%emt 00:05:03]} 26. Rc1 {[%clk
00:32:27]} {[%emt 00:04:52]} Bd8 {[%clk 00:28:06]} {[%emt 00:08:20]} 27. Rhf1
{[%clk 00:27:27]} {[%emt 00:05:29]} Bb6 {[%clk 00:23:59]} {[%emt 00:04:37]} 28.
Bxb6 {[%clk 00:26:46]} {[%emt 00:01:11]} Rxb6 {[%clk 00:24:20]} {[%emt
00:00:09]} 29. c3 {[%clk 00:25:08]} {[%emt 00:02:08]} bxc3 {[%clk 00:20:29]}
{[%emt 00:04:21]} 30. Rxc3 {[%clk 00:25:28]} {[%emt 00:00:10]} Rcb8 {[%clk
00:19:21]} {[%emt 00:01:39]} 31. Rf2 {[%clk 00:24:17]} {[%emt 00:01:41]} Qb7
{[%clk 00:14:34]} {[%emt 00:05:17]} 32. Rcc2 {[%clk 00:21:33]} {[%emt
00:03:13]} Rb5 {[%clk 00:13:51]} {[%emt 00:01:13]} 33. Rfd2 {[%clk 00:20:42]}
{[%emt 00:01:22]} Qd7 {[%clk 00:06:25]} {[%emt 00:07:56]} 34. Rc3 {[%clk
00:18:18]} {[%emt 00:02:54]} Rb4 {[%clk 00:05:52]} {[%emt 00:01:03]} 35. Rc4
{[%clk 00:16:10]} {[%emt 00:02:38]} Qb5 {[%clk 00:03:49]} {[%emt 00:02:32]} 36.
Rxb4 {[%clk 00:15:56]} {[%emt 00:00:44]} Qxd3+ {[%clk 00:04:06]} {[%emt
00:00:14]} 37. Rxd3 {[%clk 00:16:04]} {[%emt 00:00:22]} Rxb4 {[%clk 00:04:30]}
{[%emt 00:00:06]} 38. Rc3 {[%clk 00:14:47]} {[%emt 00:01:47]} Kf7 {[%clk
00:04:28]} {[%emt 00:00:32]} 39. Rc6 {[%clk 00:14:47]} {[%emt 00:00:29]} Rd4
{[%clk 00:04:40]} {[%emt 00:00:17]} 40. Rxd6 {[%clk 00:14:39]} {[%emt
00:00:39]} Rd3 {[%clk 00:03:13]} {[%emt 00:01:57]} 41. Ra6 {[%clk 00:13:18]}
{[%emt 00:01:51]} Rxf3 {[%clk 00:02:43]} {[%emt 00:01:01]} 42. Rxa4 {[%clk
00:12:55]} {[%emt 00:00:53]} Rd3 {[%clk 00:03:07]} {[%emt 00:00:05]} 43. Ra5
{[%clk 00:12:22]} {[%emt 00:01:03]} Rd4 {[%clk 00:02:34]} {[%emt 00:01:03]} 44.
Kc2 {[%clk 00:11:30]} {[%emt 00:01:22]} e4 {[%clk 00:02:07]} {[%emt 00:00:58]}
45. Kc3 {[%clk 00:10:51]} {[%emt 00:01:09]} e3 {[%clk 00:00:53]} {[%emt
00:01:44]} 46. Ra7+ {[%clk 00:09:01]} {[%emt 00:02:20]} Ke8 {[%clk 00:01:03]}
{[%emt 00:00:19]} 47. Kxd4 {[%clk 00:09:20]} {[%emt 00:00:12]} e2 {[%clk
00:01:20]} {[%emt 00:00:13]} 48. d6 {[%clk 00:09:43]} {[%emt 00:00:08]} 1-0

[Event "Mistrovství Čech mládeže 2023 - HD14"]
[Site "Harrachov, Czech Republic"]
[Date "2023.10.25"]
[Round "6.11"]
[White "Jun, Rostislav"]
[Black "Slívová, Linda"]
[Result "0-1"]
[TimeControl "90m + 30s"]
[WhiteElo "1360"]
[BlackElo "1624"]

1. e4 {[%clk 01:30:52]} {[%emt 00:00:08]} c6 {[%clk 01:30:53]} {[%emt
00:00:07]} 2. d4 {[%clk 01:31:11]} {[%emt 00:00:10]} d5 {[%clk 01:31:17]}
{[%emt 00:00:06]} 3. exd5 {[%clk 01:31:38]} {[%emt 00:00:04]} cxd5 {[%clk
01:31:38]} {[%emt 00:00:08]} 4. c4 {[%clk 01:30:54]} {[%emt 00:01:14]} Nf6
{[%clk 01:31:44]} {[%emt 00:00:24]} 5. Nc3 {[%emt 00:00:16]} Nc6 {[%clk
01:31:05]} {[%emt 00:01:06]} 6. Nf3 {[%clk 01:31:33]} {[%emt 00:00:06]} Bg4
{[%clk 01:30:45]} {[%emt 00:00:51]} 7. cxd5 {[%clk 01:30:53]} {[%emt 00:01:11]}
Nxd5 {[%clk 01:30:54]} {[%emt 00:00:20]} 8. Be3 {[%clk 01:30:48]} {[%emt
00:00:35]} Nxe3 {[%clk 01:23:50]} {[%emt 00:07:34]} 9. fxe3 {[%clk 01:31:14]}
{[%emt 00:00:04]} e6 {[%clk 01:17:28]} {[%emt 00:06:52]} 10. Be2 {[%clk
01:30:45]} {[%emt 00:00:59]} Bd6 {[%clk 01:14:24]} {[%emt 00:03:34]} 11. O-O
{[%clk 01:24:38]} {[%emt 00:06:36]} O-O {[%clk 01:12:43]} {[%emt 00:02:12]} 12.
Ne4 {[%clk 01:23:46]} {[%emt 00:01:22]} Bc7 {[%clk 01:10:50]} {[%emt 00:02:23]}
13. Nc5 {[%clk 01:22:57]} {[%emt 00:01:19]} b6 {[%clk 01:06:58]} {[%emt
00:04:23]} 14. Nd3 {[%clk 01:22:32]} {[%emt 00:00:53]} Rc8 {[%clk 00:59:04]}
{[%emt 00:08:24]} 15. Rc1 {[%clk 01:22:42]} {[%emt 00:00:21]} Bb8 {[%clk
00:58:32]} {[%emt 00:01:02]} 16. h3 {[%clk 01:20:53]} {[%emt 00:02:19]} Bf5
{[%clk 00:58:29]} {[%emt 00:00:33]} 17. Qe1 {[%clk 01:17:40]} {[%emt 00:03:43]}
Ne7 {[%clk 00:52:23]} {[%emt 00:06:36]} 18. Rxc8 {[%clk 01:15:05]} {[%emt
00:03:04]} Qxc8 {[%clk 00:52:47]} {[%emt 00:00:05]} 19. Qd2 {[%clk 01:15:30]}
{[%emt 00:00:05]} Be4 {[%clk 00:50:48]} {[%emt 00:02:30]} 20. Rc1 {[%clk
01:15:35]} {[%emt 00:00:24]} Qb7 {[%clk 00:50:56]} {[%emt 00:00:22]} 21. a4
{[%clk 01:14:33]} {[%emt 00:01:32]} Nf5 {[%clk 00:46:24]} {[%emt 00:05:01]} 22.
b4 {[%clk 01:11:36]} {[%emt 00:03:28]} Qd5 {[%clk 00:34:41]} {[%emt 00:12:13]}
23. Nf2 {[%clk 01:06:21]} {[%emt 00:05:45]} Ng3 {[%clk 00:33:33]} {[%emt
00:01:37]} 24. Nxe4 {[%clk 01:05:09]} {[%emt 00:01:42]} Nxe4 {[%clk 00:33:15]}
{[%emt 00:00:48]} 25. Qc2 {[%clk 01:04:41]} {[%emt 00:00:59]} Bg3 {[%clk
00:26:36]} {[%emt 00:07:08]} 26. Bd3 {[%clk 01:02:56]} {[%emt 00:02:14]} Bf2+
{[%clk 00:22:25]} {[%emt 00:04:41]} 27. Kf1 {[%clk 01:02:44]} {[%emt 00:00:42]}
f5 {[%clk 00:22:50]} {[%emt 00:00:05]} 28. Bxe4 {[%clk 01:02:27]} {[%emt
00:00:47]} fxe4 {[%clk 00:22:58]} {[%emt 00:00:22]} 29. Kxf2 {[%clk 01:02:53]}
{[%emt 00:00:04]} exf3 {[%clk 00:23:14]} {[%emt 00:00:13]} 30. g3 {[%clk
01:03:13]} {[%emt 00:00:11]} Kh8 {[%clk 00:19:27]} {[%emt 00:04:17]} 31. Qc4
{[%clk 01:00:33]} {[%emt 00:03:10]} Qf5 {[%clk 00:19:35]} {[%emt 00:00:23]} 32.
Rh1 {[%clk 01:00:56]} {[%emt 00:00:06]} e5 {[%clk 00:19:09]} {[%emt 00:00:57]}
33. dxe5 {[%clk 00:59:26]} {[%emt 00:02:00]} Qxe5 {[%clk 00:17:11]} {[%emt
00:02:29]} 34. Qd4 {[%clk 00:59:54]} {[%emt 00:00:01]} Qc7 {[%clk 00:17:06]}
{[%emt 00:00:34]} 35. Qd2 {[%clk 00:59:36]} {[%emt 00:00:48]} Rd8 {[%clk
00:16:38]} {[%emt 00:00:59]} 36. Qc1 {[%clk 01:00:00]} {[%emt 00:00:05]} Qf7
{[%clk 00:16:49]} {[%emt 00:00:19]} 37. Qc2 {[%clk 01:00:08]} {[%emt 00:00:23]}
Qe7 {[%clk 00:14:42]} {[%emt 00:02:36]} 38. Qc3 {[%clk 01:00:02]} {[%emt
00:00:36]} Qd7 {[%clk 00:14:31]} {[%emt 00:00:40]} 39. b5 {[%clk 00:59:25]}
{[%emt 00:01:08]} Qf5 {[%clk 00:14:30]} {[%emt 00:00:31]} 40. g4 {[%clk
00:58:40]} {[%emt 00:01:15]} Qg5 {[%clk 00:14:09]} {[%emt 00:00:50]} 41. Qe1
{[%clk 00:56:49]} {[%emt 00:02:22]} Qf6 {[%clk 00:13:37]} {[%emt 00:01:02]} 42.
Qc1 {[%clk 00:56:14]} {[%emt 00:01:05]} Qh4+ {[%clk 00:13:41]} {[%emt
00:00:26]} 43. Kxf3 {[%clk 00:56:10]} {[%emt 00:00:34]} Rf8+ {[%clk 00:13:59]}
{[%emt 00:00:11]} 44. Ke4 {[%clk 00:56:11]} {[%emt 00:00:28]} Qf2 {[%clk
00:12:04]} {[%emt 00:02:26]} 45. Qc6 {[%clk 00:55:05]} {[%emt 00:01:37]} Qf3+
{[%clk 00:11:20]} {[%emt 00:01:13]} 46. Kd3 {[%clk 00:53:35]} {[%emt 00:02:00]}
Rd8+ {[%clk 00:11:38]} {[%emt 00:00:12]} 47. Kc2 {[%clk 00:53:18]} {[%emt
00:00:47]} Qe2+ {[%clk 00:11:57]} {[%emt 00:00:12]} 48. Kb1 {[%clk 00:53:31]}
{[%emt 00:00:17]} Qxe3 {[%clk 00:11:02]} {[%emt 00:01:25]} 49. Qc2 {[%emt
00:01:24]} Qd4 {[%clk 00:11:05]} {[%emt 00:00:07]} 50. Re1 {[%clk 00:52:35]}
{[%emt 00:00:51]} Qb4+ {[%emt 00:00:25]} 0-1

[Event "Mistrovství Čech mládeže 2023 - HD14"]
[Site "Harrachov, Czech Republic"]
[Date "2023.10.25"]
[Round "6.12"]
[White "Pogorelskiy, Boris"]
[Black "Ocelák, Lukáš"]
[Result "1-0"]
[TimeControl "90m + 30s"]
[WhiteElo "1541"]
[BlackElo "1342"]

1. e4 {[%clk 01:30:56]} {[%emt 00:00:03]} c6 {[%clk 01:30:46]} {[%emt
00:00:15]} 2. d4 {[%clk 01:31:21]} {[%emt 00:00:05]} d5 {[%clk 01:31:04]}
{[%emt 00:00:12]} 3. exd5 {[%clk 01:31:48]} {[%emt 00:00:03]} cxd5 {[%clk
01:31:08]} {[%emt 00:00:25]} 4. Bd3 {[%clk 01:32:09]} {[%emt 00:00:09]} Nc6
{[%clk 01:29:52]} {[%emt 00:01:46]} 5. c3 {[%clk 01:32:30]} {[%emt 00:00:09]}
g6 {[%clk 01:27:09]} {[%emt 00:03:13]} 6. Bf4 {[%clk 01:30:18]} {[%emt
00:02:42]} Nh6 {[%clk 01:22:01]} {[%emt 00:05:37]} 7. Nf3 {[%clk 01:27:38]}
{[%emt 00:03:10]} f6 {[%clk 01:18:49]} {[%emt 00:03:43]} 8. O-O {[%clk
01:25:00]} {[%emt 00:03:07]} Nf7 {[%clk 01:15:52]} {[%emt 00:03:27]} 9. Re1
{[%clk 01:23:27]} {[%emt 00:02:03]} Bg7 {[%clk 01:12:55]} {[%emt 00:03:27]} 10.
Nbd2 {[%clk 01:20:26]} {[%emt 00:03:32]} O-O {[%clk 01:10:59]} {[%emt
00:02:26]} 11. Bb5 {[%clk 01:19:00]} {[%emt 00:01:56]} Bd7 {[%clk 01:03:30]}
{[%emt 00:07:59]} 12. Nb3 {[%clk 01:18:12]} {[%emt 00:01:18]} b6 {[%clk
00:59:29]} {[%emt 00:04:31]} 13. a4 {[%clk 01:15:38]} {[%emt 00:03:05]} a5
{[%clk 00:49:36]} {[%emt 00:10:22]} 14. Qe2 {[%clk 01:10:46]} {[%emt 00:05:22]}
Re8 {[%clk 00:45:20]} {[%emt 00:04:46]} 15. Bxc6 {[%clk 01:01:47]} {[%emt
00:09:29]} Bxc6 {[%clk 00:45:11]} {[%emt 00:00:38]} 16. Qe6 {[%clk 01:02:09]}
{[%emt 00:00:08]} Qd7 {[%clk 00:39:03]} {[%emt 00:06:38]} 17. Nbd2 {[%clk
00:56:36]} {[%emt 00:06:04]} Qxe6 {[%clk 00:31:44]} {[%emt 00:07:48]} 18. Rxe6
{[%clk 00:57:01]} {[%emt 00:00:04]} Nd8 {[%clk 00:31:43]} {[%emt 00:00:31]} 19.
Re2 {[%clk 00:55:44]} {[%emt 00:01:47]} Nf7 {[%clk 00:26:27]} {[%emt 00:05:46]}
20. Bc7 {[%clk 00:53:51]} {[%emt 00:02:24]} b5 {[%clk 00:20:56]} {[%emt
00:06:01]} 21. Nb3 {[%clk 00:50:52]} {[%emt 00:03:29]} bxa4 {[%clk 00:17:44]}
{[%emt 00:03:41]} 22. Nc5 {[%clk 00:49:52]} {[%emt 00:01:30]} e5 {[%clk
00:15:20]} {[%emt 00:02:54]} 23. dxe5 {[%clk 00:48:22]} {[%emt 00:02:01]} Nxe5
{[%clk 00:14:12]} {[%emt 00:01:38]} 24. Nxe5 {[%clk 00:48:20]} {[%emt
00:00:31]} fxe5 {[%clk 00:14:29]} {[%emt 00:00:13]} 25. Nxa4 {[%clk 00:48:20]}
{[%emt 00:00:29]} d4 {[%clk 00:12:07]} {[%emt 00:02:53]} 26. Nc5 {[%clk
00:42:32]} {[%emt 00:06:18]} dxc3 {[%clk 00:08:57]} {[%emt 00:03:41]} 27. bxc3
{[%clk 00:42:55]} {[%emt 00:00:07]} e4 {[%clk 00:06:55]} {[%emt 00:02:31]} 28.
Rxa5 {[%clk 00:42:21]} {[%emt 00:01:04]} Bxc3 {[%clk 00:04:41]} {[%emt
00:02:45]} 29. Rxa8 {[%clk 00:42:21]} {[%emt 00:00:30]} Rxa8 {[%clk 00:05:08]}
{[%emt 00:00:05]} 30. h3 {[%clk 00:42:33]} {[%emt 00:00:17]} Re8 {[%clk
00:04:01]} {[%emt 00:01:36]} 31. Kh2 {[%clk 00:41:32]} {[%emt 00:01:31]} Be5+
{[%clk 00:02:56]} {[%emt 00:01:36]} 32. Bxe5 {[%clk 00:41:45]} {[%emt
00:00:17]} Rxe5 {[%clk 00:03:23]} {[%emt 00:00:03]} 33. Nb3 {[%clk 00:41:43]}
{[%emt 00:00:32]} Re8 {[%clk 00:03:27]} {[%emt 00:00:26]} 34. Kg3 {[%clk
00:41:41]} {[%emt 00:00:32]} Kf7 {[%clk 00:03:28]} {[%emt 00:00:29]} 35. Kf4
{[%clk 00:41:40]} {[%emt 00:00:32]} Kf6 {[%clk 00:03:08]} {[%emt 00:00:50]} 36.
Nc5 {[%clk 00:41:45]} {[%emt 00:00:26]} Re5 {[%clk 00:02:11]} {[%emt 00:01:26]}
37. Nxe4+ Bxe4 {[%clk 00:02:31]} 38. Rxe4 {[%clk 00:41:06]} {[%emt 00:00:06]}
Ra5 {[%clk 00:02:39]} {[%emt 00:00:21]} 39. h4 {[%clk 00:40:42]} {[%emt
00:00:54]} Rb5 {[%clk 00:02:30]} {[%emt 00:00:40]} 40. g4 {[%clk 00:40:31]}
{[%emt 00:00:41]} Ra5 {[%clk 00:02:11]} {[%emt 00:00:49]} 41. Rb4 {[%clk
00:40:53]} {[%emt 00:00:08]} Ra6 {[%clk 00:02:01]} {[%emt 00:00:40]} 42. g5+
{[%clk 00:40:31]} {[%emt 00:00:52]} Ke6 {[%clk 00:01:54]} {[%emt 00:00:36]} 43.
Rb7 {[%clk 00:40:43]} {[%emt 00:00:19]} Ra4+ {[%clk 00:01:42]} {[%emt
00:00:43]} 44. Kg3 {[%clk 00:41:08]} {[%emt 00:00:05]} Ra3+ {[%clk 00:01:24]}
{[%emt 00:00:48]} 45. Kg4 {[%clk 00:41:32]} {[%emt 00:00:06]} Ra4+ {[%clk
00:01:41]} {[%emt 00:00:13]} 46. f4 {[%clk 00:41:58]} {[%emt 00:00:03]} Ra1
{[%clk 00:01:25]} {[%emt 00:00:46]} 47. Rxh7 {[%clk 00:41:57]} {[%emt
00:00:30]} Rg1+ {[%clk 00:01:42]} {[%emt 00:00:14]} 48. Kf3 {[%clk 00:42:21]}
{[%emt 00:00:06]} Rf1+ {[%clk 00:01:56]} {[%emt 00:00:16]} 49. Kg3 {[%clk
00:42:44]} {[%emt 00:00:08]} Rg1+ {[%clk 00:02:04]} {[%emt 00:00:22]} 50. Kf2
{[%clk 00:43:03]} {[%emt 00:00:10]} Ra1 {[%clk 00:02:14]} {[%emt 00:00:20]} 51.
Rg7 {[%clk 00:43:21]} {[%emt 00:00:12]} Ra2+ {[%clk 00:01:51]} {[%emt
00:00:53]} 52. Kg3 {[%clk 00:43:46]} {[%emt 00:00:06]} Kf5 {[%clk 00:02:07]}
{[%emt 00:00:14]} 53. Rf7+ {[%clk 00:43:54]} {[%emt 00:00:22]} Ke6 {[%clk
00:02:32]} {[%emt 00:00:05]} 54. Rf6+ {[%clk 00:44:19]} {[%emt 00:00:05]} Ke7
{[%clk 00:02:52]} {[%emt 00:00:10]} 55. Rxg6 {[%clk 00:44:46]} {[%emt
00:00:03]} Ra3+ {[%clk 00:03:10]} {[%emt 00:00:12]} 56. Kg4 {[%clk 00:45:12]}
{[%emt 00:00:04]} 1-0